[Event "Titled Tuesday Blitz November 08 Late 2022"]
[White "Polster, Christian"]
[Black "Arencibia Monduy, Antonio"]
[WhiteFideId "12965081"]
[BlackFideId "3507939"]
[WhiteElo "2209"]
[BlackElo "2456"]
[Result "1-0"]
[Round "08"]
[TimeControl "180+1"]
[Date "2022.11.09"]
[WhiteClock "0:00:07"]
[BlackClock "0:00:01"]

1. e4 {[%clk 0:03:00]}  c6 {[%clk 0:02:55]} 2. d4 {[%clk 0:02:59]}  d6 {[%clk 0:02:56]} 3. Nc3 {[%clk 0:02:57]}  Qc7 {[%clk 0:02:56]} 4. h3 {[%clk 0:02:56]}  e5 {[%clk 0:02:57]} 5. Nf3 {[%clk 0:02:56]}  Nf6 {[%clk 0:02:55]} 6. g4 {[%clk 0:02:55]}  h6 {[%clk 0:02:54]} 7. Bg2 {[%clk 0:02:55]}  Be7 {[%clk 0:02:54]} 8. O-O {[%clk 0:02:52]}  O-O {[%clk 0:02:48]} 9. a4 {[%clk 0:02:50]}  Nxg4 {[%clk 0:02:44]} 10. hxg4 {[%clk 0:02:45]}  Bxg4 {[%clk 0:02:45]} 11. dxe5 {[%clk 0:02:40]}  dxe5 {[%clk 0:02:43]} 12. Qe1 {[%clk 0:02:17]}  Nd7 {[%clk 0:02:38]} 13. Be3 {[%clk 0:02:10]}  f5 {[%clk 0:02:28]} 14. Nh2 {[%clk 0:01:54]}  Bh5 {[%clk 0:02:29]} 15. exf5 {[%clk 0:01:51]}  Rxf5 {[%clk 0:02:29]} 16. Ne4 {[%clk 0:01:49]}  Bg6 {[%clk 0:02:15]} 17. Nf3 {[%clk 0:01:20]}  Raf8 {[%clk 0:02:07]} 18. Nfd2 {[%clk 0:01:15]}  Bh4 {[%clk 0:01:45]} 19. a5 {[%clk 0:00:59]}  Nf6 {[%clk 0:00:59]} 20. Bxa7 {[%clk 0:00:33]}  Ng4 {[%clk 0:00:45]} 21. Qe2 {[%clk 0:00:27]}  h5 {[%clk 0:00:42]} 22. Bc5 {[%clk 0:00:17]}  Ra8 {[%clk 0:00:24]} 23. Ra3 {[%clk 0:00:16]}  Rxa5 {[%clk 0:00:14]} 24. Bd6 {[%clk 0:00:16]}  Qd8 {[%clk 0:00:14]} 25. Rxa5 {[%clk 0:00:11]}  Qxa5 {[%clk 0:00:15]} 26. Nf3 {[%clk 0:00:11]}  Bd8 {[%clk 0:00:08]} 27. Nh2 {[%clk 0:00:09]}  Nxh2 {[%clk 0:00:06]} 28. Kxh2 {[%clk 0:00:10]}  h4 {[%clk 0:00:02]} 29. c3 {[%clk 0:00:09]}  Bh5 {[%clk 0:00:03]} 30. Qe3 {[%clk 0:00:08]}  Bb6 {[%clk 0:00:02]} 31. Bc5 {[%clk 0:00:08]}  Bc7 {[%clk 0:00:02]} 32. Bd6 {[%clk 0:00:07]}  Bd8 {[%clk 0:00:02]} 33. Qc5 {[%clk 0:00:06]}  Qa7 {[%clk 0:00:02]} 34. Qxa7 {[%clk 0:00:05]}  Rf4 {[%clk 0:00:01]} 35. Qb8 {[%clk 0:00:06]}  Kh7 {[%clk 0:00:01]} 36. Bh3 {[%clk 0:00:07]} 1-0


[Site "https://www.chess.com"]

[Event "Titled Tuesday Blitz November 08 Late 2022"]
[White "Ristic, Nebojsa B"]
[Black "Dzierzak, Radoslaw"]
[WhiteFideId "935468"]
[BlackFideId "1161407"]
[WhiteElo "2320"]
[BlackElo "2111"]
[Result "1-0"]
[Round "08"]
[TimeControl "180+1"]
[Date "2022.11.09"]
[WhiteClock "0:01:28"]
[BlackClock "0:00:05"]

1. d4 {[%clk 0:03:00]}  Nf6 {[%clk 0:02:59]} 2. Bf4 {[%clk 0:03:01]}  e6 {[%clk 0:02:55]} 3. e3 {[%clk 0:03:01]}  c5 {[%clk 0:02:52]} 4. Nf3 {[%clk 0:03:01]}  cxd4 {[%clk 0:02:52]} 5. exd4 {[%clk 0:03:01]}  b6 {[%clk 0:02:52]} 6. Nbd2 {[%clk 0:03:01]}  Bb7 {[%clk 0:02:53]} 7. Nc4 {[%clk 0:03:01]}  Be7 {[%clk 0:02:53]} 8. Nd6+ {[%clk 0:03:00]}  Bxd6 {[%clk 0:02:54]} 9. Bxd6 {[%clk 0:03:01]}  Ne4 {[%clk 0:02:53]} 10. Ba3 {[%clk 0:03:00]}  d6 {[%clk 0:02:50]} 11. Bd3 {[%clk 0:03:00]}  O-O {[%clk 0:02:49]} 12. Qe2 {[%clk 0:03:00]}  Nf6 {[%clk 0:02:34]} 13. O-O {[%clk 0:03:00]}  Re8 {[%clk 0:02:30]} 14. Rfe1 {[%clk 0:03:00]}  Nc6 {[%clk 0:02:24]} 15. c3 {[%clk 0:02:57]}  a6 {[%clk 0:02:21]} 16. Rad1 {[%clk 0:02:56]}  b5 {[%clk 0:02:19]} 17. b3 {[%clk 0:02:49]}  Rc8 {[%clk 0:02:12]} 18. c4 {[%clk 0:02:48]}  b4 {[%clk 0:02:06]} 19. Bb2 {[%clk 0:02:46]}  d5 {[%clk 0:02:06]} 20. Ne5 {[%clk 0:02:44]}  Qb6 {[%clk 0:01:42]} 21. c5 {[%clk 0:02:38]}  Qa5 {[%clk 0:01:39]} 22. f4 {[%clk 0:02:21]}  Nxe5 {[%clk 0:01:27]} 23. fxe5 {[%clk 0:02:22]}  Ne4 {[%clk 0:01:27]} 24. Ra1 {[%clk 0:02:13]}  Ra8 {[%clk 0:01:11]} 25. Qh5 {[%clk 0:02:07]}  Bc6 {[%clk 0:01:02]} 26. Re3 {[%clk 0:02:06]}  Qd8 {[%clk 0:00:52]} 27. Rh3 {[%clk 0:02:05]}  h6 {[%clk 0:00:52]} 28. Rf1 {[%clk 0:02:02]}  Qg5 {[%clk 0:00:51]} 29. Qxf7+ {[%clk 0:01:57]}  Kh8 {[%clk 0:00:47]} 30. Bc1 {[%clk 0:01:56]}  Qe7 {[%clk 0:00:27]} 31. Qg6 {[%clk 0:01:55]}  Rf8 {[%clk 0:00:13]} 32. Bxh6 {[%clk 0:01:53]}  Rxf1+ {[%clk 0:00:11]} 33. Bxf1 {[%clk 0:01:54]}  Kg8 {[%clk 0:00:11]} 34. Be3 {[%clk 0:01:34]}  Rf8 {[%clk 0:00:05]} 35. Be2 {[%clk 0:01:28]} 1-0


[Site "https://www.chess.com"]

[Event "Titled Tuesday Blitz November 08 Late 2022"]
[White "Sarana, Alexey"]
[Black "Dubov, Daniil"]
[WhiteFideId "24133795"]
[BlackFideId "24126055"]
[WhiteElo "2708"]
[BlackElo "2791"]
[Result "0-1"]
[Round "08"]
[TimeControl "180+1"]
[Date "2022.11.08"]
[WhiteClock "0:00:02"]
[BlackClock "0:00:08"]

1. c4 {[%clk 0:03:00]}  b6 {[%clk 0:02:59]} 2. Nc3 {[%clk 0:02:58]}  Bb7 {[%clk 0:02:59]} 3. e4 {[%clk 0:02:58]}  e5 {[%clk 0:02:58]} 4. Nf3 {[%clk 0:02:51]}  Nc6 {[%clk 0:02:58]} 5. d4 {[%clk 0:02:49]}  exd4 {[%clk 0:02:57]} 6. Nxd4 {[%clk 0:02:49]}  Nf6 {[%clk 0:02:57]} 7. Be3 {[%clk 0:02:45]}  Bb4 {[%clk 0:02:45]} 8. f3 {[%clk 0:02:44]}  O-O {[%clk 0:02:43]} 9. Qd2 {[%clk 0:02:29]}  Ne5 {[%clk 0:02:41]} 10. a3 {[%clk 0:02:22]}  Bc5 {[%clk 0:02:40]} 11. b4 {[%clk 0:02:03]}  Be7 {[%clk 0:02:36]} 12. Nf5 {[%clk 0:02:00]}  Re8 {[%clk 0:02:32]} 13. Be2 {[%clk 0:01:58]}  a5 {[%clk 0:02:31]} 14. Nxe7+ {[%clk 0:01:53]}  Qxe7 {[%clk 0:02:31]} 15. b5 {[%clk 0:01:54]}  d6 {[%clk 0:02:13]} 16. O-O {[%clk 0:01:50]}  Nfd7 {[%clk 0:02:10]} 17. Bg5 {[%clk 0:01:19]}  f6 {[%clk 0:02:09]} 18. Bh4 {[%clk 0:01:17]}  Nc5 {[%clk 0:02:07]} 19. Rae1 {[%clk 0:01:04]}  Kh8 {[%clk 0:01:59]} 20. Nd5 {[%clk 0:01:01]}  Qf7 {[%clk 0:01:58]} 21. g4 {[%clk 0:00:53]}  g5 {[%clk 0:01:34]} 22. Bg3 {[%clk 0:00:53]}  Ng6 {[%clk 0:01:34]} 23. Qd4 {[%clk 0:00:49]}  Kg7 {[%clk 0:01:31]} 24. Bd1 {[%clk 0:00:43]}  Ne6 {[%clk 0:01:31]} 25. Qc3 {[%clk 0:00:42]}  Bxd5 {[%clk 0:01:26]} 26. cxd5 {[%clk 0:00:42]}  Nef4 {[%clk 0:01:26]} 27. Kh1 {[%clk 0:00:31]}  h5 {[%clk 0:01:23]} 28. gxh5 {[%clk 0:00:17]}  Nxh5 {[%clk 0:01:22]} 29. f4 {[%clk 0:00:18]}  Nhxf4 {[%clk 0:01:04]} 30. Bg4 {[%clk 0:00:14]}  Rh8 {[%clk 0:01:01]} 31. Bf5 {[%clk 0:00:13]}  Nh5 {[%clk 0:00:54]} 32. Bxg6 {[%clk 0:00:05]}  Kxg6 {[%clk 0:00:38]} 33. Re3 {[%clk 0:00:03]}  Rae8 {[%clk 0:00:36]} 34. Qd4 {[%clk 0:00:02]}  Re7 {[%clk 0:00:35]} 35. Ref3 {[%clk 0:00:02]}  Rhe8 {[%clk 0:00:29]} 36. Re1 {[%clk 0:00:02]}  Kh7 {[%clk 0:00:24]} 37. Qd3 {[%clk 0:00:02]}  Qg6 {[%clk 0:00:24]} 38. Rfe3 {[%clk 0:00:01]}  Ng7 {[%clk 0:00:21]} 39. Qc2 {[%clk 0:00:02]}  Kg8 {[%clk 0:00:19]} 40. Kg1 {[%clk 0:00:01]}  Kf7 {[%clk 0:00:15]} 41. Qd3 {[%clk 0:00:01]}  Nh5 {[%clk 0:00:15]} 42. Qc2 {[%clk 0:00:01]}  Nf4 {[%clk 0:00:14]} 43. Qb1 {[%clk 0:00:01]}  Kf8 {[%clk 0:00:11]} 44. Qc2 {[%clk 0:00:02]}  Nxd5 {[%clk 0:00:11]} 45. Rf3 {[%clk 0:00:02]}  Rxe4 {[%clk 0:00:10]} 46. Ref1 {[%clk 0:00:03]}  Kg7 {[%clk 0:00:09]} 47. Kh1 {[%clk 0:00:02]}  Re2 {[%clk 0:00:08]} 48. Qc6 {[%clk 0:00:02]}  Qe4 {[%clk 0:00:08]} 49. Qd7+ {[%clk 0:00:02]}  Re7 {[%clk 0:00:09]} 50. Qd8 {[%clk 0:00:02]}  g4 {[%clk 0:00:09]} 51. Bh4 {[%clk 0:00:01]}  gxf3 {[%clk 0:00:09]} 52. Rg1+ {[%clk 0:00:02]}  Rg2 {[%clk 0:00:08]} 0-1


[Site "https://www.chess.com"]

[Event "Titled Tuesday Blitz November 08 Late 2022"]
[White "Shankland, Sam"]
[Black "Bortnyk, Olexandr"]
[WhiteFideId "2004887"]
[BlackFideId "14120828"]
[WhiteElo "2612"]
[BlackElo "2723"]
[Result "0-1"]
[Round "08"]
[TimeControl "180+1"]
[Date "2022.11.08"]
[WhiteClock "0:00:47"]
[BlackClock "0:00:17"]

1. Nf3 {[%clk 0:03:00]}  Nf6 {[%clk 0:02:57]} 2. g3 {[%clk 0:03:01]}  d6 {[%clk 0:02:57]} 3. Bg2 {[%clk 0:03:01]}  g6 {[%clk 0:02:58]} 4. O-O {[%clk 0:03:01]}  Bg7 {[%clk 0:02:59]} 5. d4 {[%clk 0:03:01]}  O-O {[%clk 0:02:59]} 6. c4 {[%clk 0:03:01]}  Bf5 {[%clk 0:02:59]} 7. Nfd2 {[%clk 0:02:58]}  Qc8 {[%clk 0:02:59]} 8. e4 {[%clk 0:02:57]}  Bh3 {[%clk 0:02:59]} 9. Nc3 {[%clk 0:02:57]}  c5 {[%clk 0:02:57]} 10. dxc5 {[%clk 0:02:49]}  Bxg2 {[%clk 0:02:56]} 11. Kxg2 {[%clk 0:02:49]}  Qxc5 {[%clk 0:02:56]} 12. Qe2 {[%clk 0:02:49]}  Rc8 {[%clk 0:02:50]} 13. b3 {[%clk 0:02:46]}  Nc6 {[%clk 0:02:49]} 14. Bb2 {[%clk 0:02:45]}  Nd4 {[%clk 0:02:45]} 15. Qd3 {[%clk 0:02:44]}  Qh5 {[%clk 0:02:26]} 16. h3 {[%clk 0:02:34]}  Ne6 {[%clk 0:02:21]} 17. f4 {[%clk 0:02:26]}  Qa5 {[%clk 0:02:07]} 18. Rab1 {[%clk 0:02:20]}  a6 {[%clk 0:02:05]} 19. a4 {[%clk 0:02:18]}  Nc5 {[%clk 0:02:04]} 20. Qe2 {[%clk 0:02:18]}  e6 {[%clk 0:01:57]} 21. Nd1 {[%clk 0:01:44]}  Qb6 {[%clk 0:01:52]} 22. Nf2 {[%clk 0:01:44]}  Qc6 {[%clk 0:01:45]} 23. Kh2 {[%clk 0:01:43]}  Rab8 {[%clk 0:01:41]} 24. e5 {[%clk 0:01:37]}  Nfd7 {[%clk 0:01:35]} 25. Nde4 {[%clk 0:01:34]}  dxe5 {[%clk 0:01:25]} 26. fxe5 {[%clk 0:01:33]}  Nxe4 {[%clk 0:01:05]} 27. Nxe4 {[%clk 0:01:33]}  b5 {[%clk 0:01:00]} 28. axb5 {[%clk 0:01:12]}  axb5 {[%clk 0:00:59]} 29. Nd6 {[%clk 0:01:13]}  Rf8 {[%clk 0:00:57]} 30. cxb5 {[%clk 0:01:12]}  Qd5 {[%clk 0:00:53]} 31. Rbd1 {[%clk 0:01:09]}  Qxb3 {[%clk 0:00:51]} 32. Nxf7 {[%clk 0:01:07]}  Qxb5 {[%clk 0:00:48]} 33. Qxb5 {[%clk 0:01:05]}  Rxb5 {[%clk 0:00:49]} 34. Rxd7 {[%clk 0:01:04]}  Rxb2+ {[%clk 0:00:49]} 35. Kg1 {[%clk 0:01:05]}  h6 {[%clk 0:00:35]} 36. Re7 {[%clk 0:01:00]}  Ra8 {[%clk 0:00:23]} 37. Rxe6 {[%clk 0:00:48]}  Raa2 {[%clk 0:00:24]} 38. Rf3 {[%clk 0:00:49]}  Rg2+ {[%clk 0:00:20]} 39. Kf1 {[%clk 0:00:49]}  Rgc2 {[%clk 0:00:21]} 40. Kg1 {[%clk 0:00:47]}  Rc1+ {[%clk 0:00:16]} 41. Rf1 {[%clk 0:00:47]}  Rxf1+ {[%clk 0:00:17]} 42. Kxf1 {[%clk 0:00:47]}  Kxf7 {[%clk 0:00:17]} 0-1


[Site "https://www.chess.com"]

[Event "Titled Tuesday Blitz November 08 Late 2022"]
[White "Sibilio, Mario"]
[Black "Taboas Rodriguez, Daniel"]
[WhiteFideId "800422"]
[BlackFideId "2208466"]
[WhiteElo "2251"]
[BlackElo "2329"]
[Result "0-1"]
[Round "08"]
[TimeControl "180+1"]
[Date "2022.11.09"]
[WhiteClock "0:00:02"]
[BlackClock "0:01:26"]

1. d4 {[%clk 0:03:00]}  Nf6 {[%clk 0:02:59]} 2. c4 {[%clk 0:02:59]}  g6 {[%clk 0:02:59]} 3. g3 {[%clk 0:02:58]}  Bg7 {[%clk 0:03:00]} 4. Bg2 {[%clk 0:02:58]}  O-O {[%clk 0:03:00]} 5. Nc3 {[%clk 0:02:56]}  d6 {[%clk 0:02:56]} 6. Nf3 {[%clk 0:02:55]}  c6 {[%clk 0:02:56]} 7. h3 {[%clk 0:02:53]}  Nbd7 {[%clk 0:02:52]} 8. Be3 {[%clk 0:02:47]}  e5 {[%clk 0:02:51]} 9. d5 {[%clk 0:02:39]}  Qe7 {[%clk 0:02:47]} 10. Qd2 {[%clk 0:02:36]}  Nb6 {[%clk 0:02:44]} 11. b3 {[%clk 0:02:34]}  Nh5 {[%clk 0:02:43]} 12. Bh6 {[%clk 0:02:20]}  f5 {[%clk 0:02:39]} 13. Bxg7 {[%clk 0:02:14]}  Kxg7 {[%clk 0:02:40]} 14. e4 {[%clk 0:02:05]}  Nf6 {[%clk 0:02:39]} 15. dxc6 {[%clk 0:01:40]}  bxc6 {[%clk 0:02:38]} 16. O-O-O {[%clk 0:01:39]}  fxe4 {[%clk 0:02:35]} 17. Ng5 {[%clk 0:01:38]}  d5 {[%clk 0:02:34]} 18. cxd5 {[%clk 0:01:08]}  cxd5 {[%clk 0:02:35]} 19. f3 {[%clk 0:01:07]}  h6 {[%clk 0:02:22]} 20. fxe4 {[%clk 0:01:05]}  hxg5 {[%clk 0:02:23]} 21. exd5 {[%clk 0:01:04]}  Bf5 {[%clk 0:02:16]} 22. d6 {[%clk 0:00:57]}  Qd7 {[%clk 0:02:08]} 23. g4 {[%clk 0:00:52]}  Be6 {[%clk 0:02:07]} 24. Qxg5 {[%clk 0:00:48]}  Rac8 {[%clk 0:02:05]} 25. Kb2 {[%clk 0:00:41]}  Rc5 {[%clk 0:01:56]} 26. Rhf1 {[%clk 0:00:24]}  Qc8 {[%clk 0:01:39]} 27. Qe3 {[%clk 0:00:19]}  Nbd7 {[%clk 0:01:32]} 28. g5 {[%clk 0:00:15]}  Nh5 {[%clk 0:01:32]} 29. Rxf8 {[%clk 0:00:13]}  Qxf8 {[%clk 0:01:33]} 30. Ne4 {[%clk 0:00:10]}  Rc8 {[%clk 0:01:29]} 31. Rf1 {[%clk 0:00:07]}  Nf4 {[%clk 0:01:30]} 32. Nf6 {[%clk 0:00:03]}  Nxf6 {[%clk 0:01:28]} 33. Qxe5 {[%clk 0:00:02]}  Nd3+ {[%clk 0:01:26]} 0-1


[Site "https://www.chess.com"]

[Event "Titled Tuesday Blitz November 08 Late 2022"]
[White "Simonovic, Miroslav"]
[Black "Harish, Neeraj"]
[WhiteFideId "919152"]
[BlackFideId "30958130"]
[WhiteElo "2043"]
[BlackElo "1815"]
[Result "1-0"]
[Round "08"]
[TimeControl "180+1"]
[Date "2022.11.09"]
[WhiteClock "0:01:29"]
[BlackClock "0:01:28"]

1. d4 {[%clk 0:03:00]}  Nf6 {[%clk 0:02:57]} 2. Bg5 {[%clk 0:03:01]}  d5 {[%clk 0:02:53]} 3. Bxf6 {[%clk 0:03:00]}  exf6 {[%clk 0:02:53]} 4. c4 {[%clk 0:02:57]}  dxc4 {[%clk 0:02:46]} 5. e4 {[%clk 0:02:55]}  b5 {[%clk 0:02:34]} 6. a4 {[%clk 0:02:55]}  c6 {[%clk 0:02:32]} 7. axb5 {[%clk 0:02:54]}  cxb5 {[%clk 0:02:33]} 8. Nc3 {[%clk 0:02:25]}  Bb4 {[%clk 0:02:27]} 9. Ne2 {[%clk 0:02:07]}  O-O {[%clk 0:02:24]} 10. g3 {[%clk 0:02:07]}  Bb7 {[%clk 0:02:23]} 11. Bg2 {[%clk 0:02:07]}  f5 {[%clk 0:02:16]} 12. O-O {[%clk 0:02:03]}  fxe4 {[%clk 0:02:14]} 13. Nxe4 {[%clk 0:02:04]}  f5 {[%clk 0:02:08]} 14. Nf6+ {[%clk 0:01:58]}  Qxf6 {[%clk 0:02:00]} 15. Bxb7 {[%clk 0:01:59]}  Nd7 {[%clk 0:02:00]} 16. Bxa8 {[%clk 0:01:59]}  Rxa8 {[%clk 0:02:01]} 17. Nf4 {[%clk 0:01:52]}  Nb6 {[%clk 0:01:56]} 18. Qf3 {[%clk 0:01:37]}  a5 {[%clk 0:01:31]} 19. Nd5 {[%clk 0:01:32]}  Qd6 {[%clk 0:01:27]} 20. Nxb6 {[%clk 0:01:29]}  Qxb6 {[%clk 0:01:28]} 21. Qxa8+ {[%clk 0:01:29]} 1-0


[Site "https://www.chess.com"]

[Event "Titled Tuesday Blitz November 08 Late 2022"]
[White "Tan, Ralph"]
[Black "Papasimakopoulos, Alexandros"]
[WhiteFideId "30966590"]
[BlackFideId "4244125"]
[WhiteElo "2059"]
[BlackElo "2365"]
[Result "0-1"]
[Round "08"]
[TimeControl "180+1"]
[Date "2022.11.09"]
[WhiteClock "0:00:01"]
[BlackClock "0:01:23"]

1. Nf3 {[%clk 0:03:00]}  d5 {[%clk 0:02:59]} 2. g3 {[%clk 0:03:01]}  Nf6 {[%clk 0:02:59]} 3. Bg2 {[%clk 0:03:01]}  Bg4 {[%clk 0:02:59]} 4. Ne5 {[%clk 0:03:00]}  Bf5 {[%clk 0:02:57]} 5. O-O {[%clk 0:03:00]}  c6 {[%clk 0:02:58]} 6. d4 {[%clk 0:03:00]}  e6 {[%clk 0:02:57]} 7. c4 {[%clk 0:03:01]}  Nbd7 {[%clk 0:02:55]} 8. Nc3 {[%clk 0:03:00]}  Be7 {[%clk 0:02:50]} 9. Bf4 {[%clk 0:03:00]}  O-O {[%clk 0:02:49]} 10. Qb3 {[%clk 0:02:57]}  Qb6 {[%clk 0:02:48]} 11. Nxd7 {[%clk 0:02:57]}  Nxd7 {[%clk 0:02:48]} 12. e4 {[%clk 0:02:57]}  dxe4 {[%clk 0:02:46]} 13. Nxe4 {[%clk 0:02:57]}  Nf6 {[%clk 0:02:40]} 14. Nd6 {[%clk 0:02:49]}  Qxb3 {[%clk 0:02:19]} 15. axb3 {[%clk 0:02:47]}  Bc2 {[%clk 0:02:19]} 16. Nxb7 {[%clk 0:02:42]}  Bxb3 {[%clk 0:02:14]} 17. Na5 {[%clk 0:02:41]}  Bc2 {[%clk 0:02:11]} 18. Nxc6 {[%clk 0:02:41]}  Rae8 {[%clk 0:02:10]} 19. Nxe7+ {[%clk 0:02:39]}  Rxe7 {[%clk 0:02:11]} 20. Bd6 {[%clk 0:02:39]}  Rd7 {[%clk 0:02:12]} 21. Bxf8 {[%clk 0:02:39]}  Kxf8 {[%clk 0:02:13]} 22. Rac1 {[%clk 0:02:37]}  Bb3 {[%clk 0:02:12]} 23. c5 {[%clk 0:02:28]}  Ne8 {[%clk 0:02:08]} 24. Bc6 {[%clk 0:02:17]}  Rc7 {[%clk 0:02:08]} 25. Bxe8 {[%clk 0:02:17]}  Kxe8 {[%clk 0:02:08]} 26. Rc3 {[%clk 0:02:17]}  Bd5 {[%clk 0:02:09]} 27. b4 {[%clk 0:02:13]}  Rb7 {[%clk 0:02:09]} 28. Rb1 {[%clk 0:02:12]}  Kd7 {[%clk 0:02:09]} 29. b5 {[%clk 0:02:12]}  Kc7 {[%clk 0:02:09]} 30. b6+ {[%clk 0:02:05]}  axb6 {[%clk 0:02:08]} 31. cxb6+ {[%clk 0:02:05]}  Kd6 {[%clk 0:02:08]} 32. Ra3 {[%clk 0:01:50]}  Be4 {[%clk 0:02:04]} 33. Rb2 {[%clk 0:01:47]}  Rb8 {[%clk 0:01:59]} 34. f3 {[%clk 0:01:45]}  Bb7 {[%clk 0:01:58]} 35. Kf2 {[%clk 0:01:44]}  g5 {[%clk 0:01:57]} 36. Ke3 {[%clk 0:01:44]}  h5 {[%clk 0:01:57]} 37. Rc2 {[%clk 0:01:41]}  g4 {[%clk 0:01:57]} 38. fxg4 {[%clk 0:01:41]}  hxg4 {[%clk 0:01:58]} 39. Rc7 {[%clk 0:01:40]}  f5 {[%clk 0:01:58]} 40. Ra7 {[%clk 0:01:37]}  Bc6 {[%clk 0:01:58]} 41. Ra6 {[%clk 0:00:42]}  Bb5 {[%clk 0:01:56]} 42. Ra1 {[%clk 0:00:31]}  Rxb6 {[%clk 0:01:56]} 43. Rac1 {[%clk 0:00:31]}  Bc6 {[%clk 0:01:55]} 44. Rc8 {[%clk 0:00:27]}  Kd7 {[%clk 0:01:52]} 45. Rh8 {[%clk 0:00:26]}  Rb3+ {[%clk 0:01:52]} 46. Kf4 {[%clk 0:00:25]}  Rd3 {[%clk 0:01:47]} 47. Ke5 {[%clk 0:00:23]}  Re3+ {[%clk 0:01:47]} 48. Kf6 {[%clk 0:00:23]}  Re4 {[%clk 0:01:48]} 49. Rd1 {[%clk 0:00:21]}  f4 {[%clk 0:01:43]} 50. gxf4 {[%clk 0:00:20]}  Rxf4+ {[%clk 0:01:44]} 51. Kg5 {[%clk 0:00:20]}  Rf5+ {[%clk 0:01:41]} 52. Kg6 {[%clk 0:00:19]}  Rf2 {[%clk 0:01:36]} 53. Rd3 {[%clk 0:00:18]}  Be4+ {[%clk 0:01:36]} 54. Kg5 {[%clk 0:00:15]}  Bxd3 {[%clk 0:01:36]} 55. Kxg4 {[%clk 0:00:16]}  Bf5+ {[%clk 0:01:34]} 56. Kg3 {[%clk 0:00:16]}  Rd2 {[%clk 0:01:34]} 57. h4 {[%clk 0:00:13]}  Rxd4 {[%clk 0:01:32]} 58. h5 {[%clk 0:00:13]}  Rg4+ {[%clk 0:01:32]} 59. Kf3 {[%clk 0:00:14]}  Rh4 {[%clk 0:01:32]} 60. h6 {[%clk 0:00:13]}  Kd6 {[%clk 0:01:31]} 61. Ke3 {[%clk 0:00:12]}  Ke5 {[%clk 0:01:31]} 62. Kf3 {[%clk 0:00:12]}  Rh3+ {[%clk 0:01:32]} 63. Kf2 {[%clk 0:00:12]}  Kf4 {[%clk 0:01:32]} 64. Kg2 {[%clk 0:00:12]}  e5 {[%clk 0:01:32]} 65. Kf2 {[%clk 0:00:10]}  e4 {[%clk 0:01:32]} 66. Kg2 {[%clk 0:00:10]}  e3 {[%clk 0:01:33]} 67. Kf1 {[%clk 0:00:08]}  Kf3 {[%clk 0:01:32]} 68. Kg1 {[%clk 0:00:08]}  Rg3+ {[%clk 0:01:28]} 69. Kh2 {[%clk 0:00:08]}  Rg2+ {[%clk 0:01:28]} 70. Kh1 {[%clk 0:00:08]}  e2 {[%clk 0:01:26]} 71. Re8 {[%clk 0:00:08]}  Rg5 {[%clk 0:01:23]} 72. Kh2 {[%clk 0:00:01]}  Kf2 {[%clk 0:01:22]} 73. Rxe2+ {[%clk 0:00:01]}  Kxe2 {[%clk 0:01:22]} 74. Kh1 {[%clk 0:00:01]}  Kf2 {[%clk 0:01:22]} 75. Kh2 {[%clk 0:00:01]}  Rh5# {[%clk 0:01:23]} 0-1


[Site "https://www.chess.com"]

[Event "Titled Tuesday Blitz November 08 Late 2022"]
[White "Thiel, Thomas"]
[Black "Pniaczek, Marek"]
[WhiteFideId "4615964"]
[BlackFideId "21800421"]
[WhiteElo "2218"]
[BlackElo "2138"]
[Result "1-0"]
[Round "08"]
[TimeControl "180+1"]
[Date "2022.11.09"]
[WhiteClock "0:02:17"]
[BlackClock "0:01:37"]

1. e4 {[%clk 0:03:00]}  c5 {[%clk 0:02:58]} 2. Nc3 {[%clk 0:02:59]}  e6 {[%clk 0:02:58]} 3. Nge2 {[%clk 0:02:57]}  d5 {[%clk 0:02:53]} 4. exd5 {[%clk 0:02:56]}  exd5 {[%clk 0:02:53]} 5. d4 {[%clk 0:02:56]}  Nf6 {[%clk 0:02:53]} 6. Be3 {[%clk 0:02:54]}  cxd4 {[%clk 0:02:37]} 7. Bxd4 {[%clk 0:02:54]}  Be7 {[%clk 0:02:32]} 8. g3 {[%clk 0:02:48]}  O-O {[%clk 0:02:28]} 9. Bg2 {[%clk 0:02:48]}  Nc6 {[%clk 0:02:28]} 10. O-O {[%clk 0:02:47]}  Nxd4 {[%clk 0:02:27]} 11. Qxd4 {[%clk 0:02:43]}  Be6 {[%clk 0:02:24]} 12. Nf4 {[%clk 0:02:42]}  Qd7 {[%clk 0:02:09]} 13. Nfxd5 {[%clk 0:02:40]}  Nxd5 {[%clk 0:02:08]} 14. Nxd5 {[%clk 0:02:41]}  Bxd5 {[%clk 0:02:07]} 15. Qxd5 {[%clk 0:02:40]}  Qxd5 {[%clk 0:02:05]} 16. Bxd5 {[%clk 0:02:41]}  Rfd8 {[%clk 0:02:04]} 17. c4 {[%clk 0:02:35]}  Bf6 {[%clk 0:02:02]} 18. Rab1 {[%clk 0:02:34]}  Rac8 {[%clk 0:02:02]} 19. Rfd1 {[%clk 0:02:29]}  b5 {[%clk 0:01:59]} 20. cxb5 {[%clk 0:02:28]}  Rc2 {[%clk 0:01:57]} 21. Kg2 {[%clk 0:02:19]}  Rxb2 {[%clk 0:01:53]} 22. Rxb2 {[%clk 0:02:18]}  Bxb2 {[%clk 0:01:37]} 23. Bxf7+ {[%clk 0:02:17]} 1-0


[Site "https://www.chess.com"]